bitfinex-derivatives/quotes_SOLF0:USTF0_20260208
["timestamp","ask_amount","ask_price","bid_price","bid_amount"]
[1770558445727,10.56951585,88.348,88.258,43.01049369]
[1770558445728,43.27397342,88.311,88.258,43.01049369]
[1770558446235,43.27397342,88.309,88.229,43.01049369]
[1770558446842,43.27397342,88.293,88.229,43.01049369]
[1770558447431,43.27397342,88.29,88.229,43.01049369]
[1770558448840,43.27397342,88.284,88.229,43.01049369]
[1770558449442,53.47707342,88.277,88.229,43.01049369]
[1770558450242,53.47707342,88.277,88.202,43.01049369]
[1770558450738,10.2044,88.266,88.202,43.01049369]
[1770558450942,43.27397342,88.265,88.202,43.01049369]
[1770558454044,43.27397342,88.263,88.202,43.01049369]
[1770558455044,43.27397342,88.261,88.202,43.01049369]
[1770558456842,10.2059,88.254,88.202,43.01049369]
[1770558457048,53.47987342,88.254,88.202,43.01049369]
[1770558457246,43.27397342,88.272,88.202,43.01049369]
[1770558458452,43.27397342,88.267,88.205,43.01049369]
[1770558459847,43.27397342,88.262,88.205,43.01049369]
[1770558460746,43.27397342,88.26,88.193,43.01049369]
[1770558462447,43.27397342,88.26,88.195,43.01049369]
[1770558463358,43.27397342,88.26,88.199,43.01049369]
[1770558463953,43.27397342,88.297,88.213,43.01049369]
[1770558465452,44.50386549,88.307,88.22,47.72615331]
[1770558465848,44.50386549,88.307,88.242,47.72615331]
[1770558467356,44.50386549,88.307,88.241,10.2072]
[1770558467357,44.50386549,88.307,88.244,47.72615331]
[1770558468857,44.50386549,88.307,88.246,47.72615331]
[1770558471462,44.50386549,88.307,88.248,47.72615331]
[1770558472967,54.70006549,88.337,88.251,47.72615331]
[1770558473965,44.50386549,88.337,88.267,47.72615331]
[1770558474860,44.50386549,88.337,88.271,47.72615331]
[1770558475269,44.50386549,88.329,88.259,57.93125331]
[1770558476868,44.50386549,88.327,88.259,57.93125331]
[1770558478966,44.50386549,88.325,88.259,47.72615331]
[1770558479861,44.50386549,88.322,88.259,47.72615331]
[1770558480367,44.50386549,88.311,88.236,47.72615331]
[1770558480671,44.50386549,88.306,88.236,47.72615331]
[1770558480870,53.29841949,88.305,88.236,47.72615331]
[1770558481067,53.29841949,88.304,88.236,47.72615331]
[1770558481269,53.29841949,88.303,88.238,47.72615331]
[1770558481466,8.794554,88.306,88.238,47.72615331]
[1770558481671,53.29841949,88.317,88.238,47.72615331]
[1770558481968,53.29841949,88.316,88.238,47.72615331]
[1770558482166,54.70276549,88.314,88.255,47.72615331]
[1770558482369,8.794554,88.313,88.255,47.72615331]
[1770558482566,8.794554,88.312,88.255,47.72615331]
[1770558482773,8.794554,88.311,88.255,47.72615331]
[1770558482969,54.70276549,88.314,88.255,47.72615331]
[1770558483269,8.89666957,88.313,88.255,47.72615331]
[1770558483471,54.70276549,88.314,88.255,47.72615331]
[1770558483670,8.89916565,88.313,88.255,47.72615331]
[1770558483872,10.1977,88.324,88.259,47.72615331]
[1770558484072,8.89899918,88.323,88.259,47.72615331]
[1770558484272,8.89899918,88.322,88.259,47.72615331]
[1770558484469,8.89899918,88.321,88.259,47.72615331]
[1770558484669,44.50386549,88.328,88.261,47.72615331]
[1770558484869,44.50386549,88.326,88.205,47.72615331]
[1770558485075,44.50386549,88.324,88.205,47.72615331]
[1770558485372,44.50386549,88.322,88.205,47.72615331]
[1770558485572,44.50386549,88.32,88.205,47.72615331]
[1770558485872,44.50386549,88.303,88.225,47.72615331]
[1770558486177,44.50386549,88.301,88.225,47.72615331]
[1770558486368,44.50386549,88.299,88.225,47.72615331]
[1770558486674,44.50386549,88.297,88.225,47.72615331]
[1770558487672,44.50386549,88.297,88.226,10.209]
[1770558487974,44.50386549,88.297,88.227,47.72615331]
[1770558489566,10.2,88.304,88.227,47.72615331]
[1770558489567,44.50386549,88.291,88.227,47.72615331]
[1770558489774,44.50386549,88.289,88.227,47.72615331]
[1770558489975,44.50386549,88.287,88.227,47.72615331]
[1770558495880,47.47569389,88.31,88.232,48.27878221]
[1770558496082,47.47569389,88.305,88.232,48.27878221]
[1770558496582,47.47569389,88.297,88.232,48.27878221]
[1770558496777,8.89899918,88.296,88.176,48.27878221]
[1770558497084,56.37469307,88.295,88.176,48.27878221]
[1770558497283,47.47569389,88.293,88.176,48.27878221]
[1770558497482,47.47569389,88.291,88.176,48.27878221]
[1770558497675,47.47569389,88.266,88.194,48.27878221]
[1770558498278,10.2046,88.264,88.195,10.2126]
[1770558498580,47.47569389,88.263,88.196,48.27878221]
[1770558499175,47.47569389,88.298,88.2,48.27878221]
[1770558499571,47.47569389,88.298,88.24,10.2073]
[1770558499776,47.47569389,88.298,88.241,48.27878221]
[1770558500081,47.47569389,88.325,88.241,48.27878221]
[1770558500279,47.47569389,88.323,88.241,48.27878221]
[1770558500480,47.47569389,88.321,88.241,48.27878221]
[1770558500680,47.47569389,88.313,88.244,48.27878221]
[1770558501078,47.47569389,88.339,88.244,48.27878221]
[1770558501284,47.47569389,88.338,88.244,48.27878221]
[1770558501680,47.47569389,88.338,88.212,158.831]
[1770558501681,10.1964,88.335,88.27,48.27878221]
[1770558501880,47.47569389,88.338,88.27,48.27878221]
[1770558502389,47.47569389,88.329,88.27,48.27878221]
[1770558504387,47.47569389,88.329,88.272,48.27878221]
[1770558504885,47.47569389,88.348,88.287,48.27878221]
[1770558505389,47.47569389,88.346,88.27,48.27878221]
[1770558505588,47.47569389,88.344,88.27,48.27878221]
[1770558505790,47.47569389,88.342,88.27,48.27878221]
[1770558506089,47.47569389,88.34,88.27,48.27878221]
[1770558506284,47.47569389,88.338,88.27,48.27878221]
[1770558506491,47.47569389,88.336,88.27,48.27878221]
[1770558506680,47.47569389,88.334,88.27,48.27878221]
[1770558506886,47.47569389,88.332,88.27,48.27878221]
[1770558507087,47.47569389,88.33,88.27,48.27878221]
[1770558507285,47.47569389,88.328,88.27,48.27878221]
[1770558507594,47.47569389,88.326,88.27,48.27878221]
[1770558507794,56.37469307,88.325,88.27,48.27878221]
[1770558507993,56.37469307,88.324,88.27,48.27878221]
[1770558508197,8.89899918,88.323,88.27,48.27878221]
[1770558508493,8.89899918,88.322,88.27,48.27878221]
[1770558508695,47.47569389,88.324,88.27,48.27878221]
[1770558508895,56.39357119,88.323,88.27,48.27878221]
[1770558509095,8.9178773,88.322,88.27,48.27878221]
[1770558509391,47.47569389,88.323,88.227,20.4177]
[1770558509392,8.9187334,88.321,88.273,58.48218221]
[1770558509593,47.47569389,88.323,88.273,58.48218221]
[1770558509793,8.918635,88.322,88.273,58.48218221]
[1770558510096,47.47569389,88.323,88.273,58.48218221]
[1770558510795,47.47569389,88.323,88.226,306.73460305]
[1770558510796,47.47569389,88.321,88.261,10.2049]
[1770558510997,47.47569389,88.319,88.251,48.27878221]
[1770558511195,47.47569389,88.317,88.251,48.27878221]
[1770558511397,47.47569389,88.315,88.251,48.27878221]
[1770558511598,47.47569389,88.313,88.251,48.27878221]
[1770558511795,47.47569389,88.311,88.251,48.27878221]
[1770558511997,47.47569389,88.309,88.251,48.27878221]
[1770558512194,47.47569389,88.307,88.251,48.27878221]
[1770558512395,10.40876876,88.323,88.251,48.27878221]
[1770558512396,56.39456549,88.306,88.251,48.27878221]
[1770558512595,47.47569389,88.304,88.251,48.27878221]
[1770558512792,56.39456549,88.303,88.251,48.27878221]
[1770558512996,47.47569389,88.301,88.251,48.27878221]
[1770558513192,56.39456549,88.3,88.251,48.27878221]
[1770558513398,8.9188716,88.299,88.251,48.27878221]
[1770558513598,8.9188716,88.298,88.251,48.27878221]
[1770558513799,8.9188716,88.297,88.251,48.27878221]
[1770558513998,47.47569389,88.3,88.251,48.27878221]
[1770558514199,56.39675351,88.299,88.251,48.27878221]
[1770558514499,8.92105962,88.298,88.251,48.27878221]
[1770558514701,8.92105962,88.297,88.251,48.27878221]
[1770558514901,8.92105962,88.298,88.251,48.27878221]
[1770558515098,47.47569389,88.299,88.251,48.27878221]
[1770558515302,8.92024577,88.298,88.251,48.27878221]
[1770558515597,47.47569389,88.299,88.251,48.27878221]
[1770558515802,8.92087024,88.298,88.251,48.27878221]
[1770558515997,47.47569389,88.299,88.251,48.27878221]
[1770558516197,8.92087024,88.298,88.251,48.27878221]
[1770558516397,47.47569389,88.299,88.251,48.27878221]
[1770558517999,47.47569389,88.297,88.251,48.27878221]
[1770558519307,47.47569389,88.295,88.23,48.27878221]
[1770558519498,47.47569389,88.293,88.23,48.27878221]
[1770558520702,47.47569389,88.293,88.234,48.27878221]
[1770558521803,47.47569389,88.293,88.236,48.27878221]
[1770558523300,47.47569389,88.293,88.244,48.27878221]
[1770558523511,8.92087024,88.302,88.244,48.27878221]
[1770558523808,8.92087024,88.301,88.244,48.27878221]
[1770558524010,8.92087024,88.3,88.244,48.27878221]
[1770558524208,8.92087024,88.305,88.244,48.27878221]
[1770558524510,8.92087024,88.304,88.244,48.27878221]
[1770558524702,8.92087024,88.303,88.246,47.11998879]
[1770558524902,8.92087024,88.302,88.246,47.11998879]
[1770558525098,8.92087024,88.301,88.246,47.11998879]
[1770558525297,8.92087024,88.3,88.246,47.11998879]
[1770558525506,8.92087024,88.299,88.246,47.11998879]
[1770558525705,50.72911184,88.304,88.246,47.11998879]
[1770558525904,8.92087024,88.303,88.246,47.11998879]
[1770558526107,59.64998208,88.302,88.246,47.11998879]
[1770558526409,50.72911184,88.3,88.246,47.11998879]
[1770558526603,8.92087024,88.299,88.246,47.11998879]
[1770558528109,8.92087024,88.298,88.246,47.11998879]
[1770558528311,8.92087024,88.297,88.248,47.11998879]
[1770558528514,8.92087024,88.296,88.248,47.11998879]
[1770558528715,50.72911184,88.298,88.248,47.11998879]
[1770558528915,8.92087024,88.297,88.248,47.11998879]
[1770558529112,59.64998208,88.297,88.248,47.11998879]
[1770558529317,8.92087024,88.296,88.248,47.11998879]
[1770558529512,8.92087024,88.295,88.248,47.11998879]
[1770558529705,8.92087024,88.294,88.248,47.11998879]
[1770558529909,8.92087024,88.296,88.248,47.11998879]
[1770558530111,8.92087024,88.295,88.248,47.11998879]
[1770558530305,8.92087024,88.294,88.248,47.11998879]
[1770558530507,50.72911184,88.296,88.248,47.11998879]
[1770558531323,50.72911184,88.294,88.248,47.11998879]
[1770558531512,59.64998208,88.294,88.248,47.11998879]
[1770558531711,50.72911184,88.294,88.248,47.11998879]
[1770558534322,8.89667175,88.293,88.248,47.11998879]
[1770558534515,50.72911184,88.294,88.248,47.11998879]
[1770558534716,8.89667175,88.293,88.248,47.11998879]
[1770558534915,50.72911184,88.294,88.248,47.11998879]
[1770558535117,8.89667175,88.293,88.248,47.11998879]
[1770558535411,50.72911184,88.294,88.248,47.11998879]
[1770558535616,8.89808312,88.293,88.25,47.11998879]
[1770558535816,50.72911184,88.294,88.25,47.11998879]
[1770558536014,8.89808082,88.293,88.25,47.11998879]
[1770558536213,50.72911184,88.294,88.25,47.11998879]
[1770558536421,59.6271931,88.293,88.238,10.2075]
[1770558536618,50.72911184,88.29,88.235,47.11998879]
[1770558538526,50.72911184,88.29,88.242,47.11998879]
[1770558540121,50.72911184,88.29,88.23,10.2084]
[1770558540325,50.72911184,88.29,88.155,33.98]
[1770558540326,50.72911184,88.288,88.215,47.11998879]
[1770558540521,50.72911184,88.286,88.215,47.11998879]
[1770558540720,50.72911184,88.284,88.215,47.11998879]
[1770558540920,50.72911184,88.282,88.215,47.11998879]
[1770558541123,50.72911184,88.28,88.215,47.11998879]
[1770558541421,50.72911184,88.278,88.215,47.11998879]
[1770558541736,50.72911184,88.266,88.202,47.11998879]
[1770558541928,50.72911184,88.264,88.202,47.11998879]
[1770558542223,20.91404296,88.303,88.202,47.11998879]
[1770558542224,50.72911184,88.262,88.202,47.11998879]
[1770558542425,50.72911184,88.26,88.202,47.11998879]
[1770558542726,50.72911184,88.271,88.204,47.11998879]
[1770558542927,50.72911184,88.269,88.204,47.11998879]
[1770558543121,8.9002093,88.268,88.204,47.11998879]
[1770558543324,8.9002093,88.267,88.204,47.11998879]
[1770558543622,8.9002093,88.266,88.225,10.2091]
[1770558543825,50.72911184,88.268,88.225,57.32908879]
[1770558545421,50.72911184,88.268,88.225,47.11998879]
[1770558547529,50.72911184,88.268,88.211,47.11998879]
[1770558547728,50.72911184,88.266,88.211,47.11998879]
[1770558547928,50.72911184,88.264,88.211,47.11998879]
[1770558548130,50.72911184,88.262,88.211,47.11998879]
[1770558548428,50.72911184,88.26,88.211,47.11998879]
[1770558548630,50.72911184,88.258,88.211,47.11998879]
[1770558549425,50.72911184,88.258,88.192,10.2128]
[1770558549426,50.72911184,88.256,88.193,47.11998879]
[1770558549627,50.72911184,88.254,88.193,47.11998879]
[1770558549826,50.72911184,88.252,88.193,47.11998879]
[1770558550130,50.72911184,88.25,88.193,47.11998879]
[1770558550321,50.72911184,88.248,88.193,47.11998879]
[1770558550629,50.72911184,88.246,88.193,47.11998879]
[1770558553333,50.72911184,88.244,88.193,47.11998879]
[1770558554635,49.98607673,88.226,88.171,48.71008809]
[1770558557241,10.56552394,88.254,88.171,48.71008809]
[1770558557242,48.96920928,88.221,88.171,48.71008809]
[1770558557437,48.96920928,88.246,88.171,48.71008809]
[1770558558840,48.96920928,88.246,88.132,11.31]
[1770558558841,48.96920928,88.246,88.182,51.89751185]
[1770558559437,48.96920928,88.261,88.205,51.89751185]
[1770558561439,48.96920928,88.261,88.207,51.89751185]
[1770558561833,48.96920928,88.261,88.208,10.211]
[1770558562044,48.96920928,88.274,88.209,51.89751185]
[1770558563545,48.96920928,88.274,88.211,51.89751185]
[1770558564746,48.96920928,88.274,88.215,51.89751185]
[1770558566148,48.96920928,88.274,88.203,10.2116]
[1770558566448,48.96920928,88.272,88.203,10.2116]
[1770558566647,48.96920928,88.27,88.203,62.10911185]
[1770558566843,48.96920928,88.268,88.203,62.10911185]
[1770558567050,48.96920928,88.266,88.203,62.10911185]
[1770558567245,48.96920928,88.264,88.203,62.10911185]
[1770558567444,48.96920928,88.262,88.203,62.10911185]
[1770558569651,48.96920928,88.262,88.213,51.89751185]
[1770558571152,48.96920928,88.259,88.185,51.89751185]
[1770558571356,48.96920928,88.257,88.185,51.89751185]
[1770558571556,57.868415,88.257,88.185,51.89751185]
[1770558571756,48.96920928,88.257,88.185,51.89751185]
[1770558572256,57.868415,88.257,88.185,51.89751185]
[1770558572454,48.96920928,88.255,88.2,51.89751185]
[1770558574560,48.96920928,88.253,88.2,51.89751185]
[1770558574960,48.96920928,88.251,88.2,51.89751185]
[1770558575158,57.868415,88.251,88.2,51.89751185]
[1770558575460,48.96920928,88.251,88.2,51.89751185]
[1770558575760,10.2063,88.249,88.2,51.89751185]
[1770558576554,48.96920928,88.251,88.2,51.89751185]
[1770558576957,48.96920928,88.251,88.203,10.2116]
[1770558577154,48.96920928,88.251,88.204,51.89751185]
[1770558580368,48.96920928,88.249,88.204,51.89751185]
[1770558580566,48.96920928,88.247,88.204,51.89751185]
[1770558580766,48.96920928,88.245,88.204,51.89751185]
[1770558581868,57.87076366,88.259,88.204,51.89751185]
[1770558582067,48.96920928,88.259,88.204,51.89751185]
[1770558582570,48.96920928,88.257,88.144,51.89751185]
[1770558582767,48.96920928,88.255,88.144,51.89751185]
[1770558583070,48.96920928,88.253,88.144,51.89751185]
[1770558583270,48.96920928,88.251,88.144,51.89751185]
[1770558583471,48.96920928,88.249,88.144,51.89751185]
[1770558583669,48.96920928,88.247,88.144,51.89751185]
[1770558583963,48.96920928,88.262,88.195,51.89751185]
[1770558584168,10.2047,88.263,88.195,51.89751185]
[1770558584169,48.96920928,88.26,88.195,51.89751185]
[1770558584365,48.96920928,88.258,88.195,51.89751185]
[1770558584568,8.91117522,88.257,88.195,51.89751185]
[1770558584763,8.91117522,88.256,88.195,51.89751185]
[1770558584964,8.91117522,88.255,88.195,51.89751185]
[1770558585166,8.91117522,88.254,88.195,51.89751185]
[1770558585363,8.91117522,88.253,88.195,51.89751185]
[1770558585569,61.02334813,88.252,88.195,51.89751185]
[1770558585771,52.11217291,88.25,88.2,61.09224896]
[1770558586074,52.11217291,88.248,88.2,61.09224896]
[1770558586265,52.11217291,88.246,88.2,61.09224896]
[1770558586460,52.11217291,88.244,88.2,61.09224896]
[1770558586664,52.11217291,88.242,88.2,61.09224896]
[1770558590166,52.11217291,88.267,88.2,61.09224896]
[1770558590362,52.11217291,88.265,88.2,61.09224896]
[1770558590666,52.11217291,88.263,88.2,61.09224896]
[1770558590867,52.11217291,88.261,88.2,61.09224896]
[1770558591068,52.11217291,88.259,88.2,61.09224896]
[1770558591372,52.11217291,88.257,88.2,61.09224896]
[1770558591575,52.11217291,88.255,88.2,61.09224896]
[1770558591772,61.03080044,88.254,88.2,61.09224896]
[1770558591974,61.03080044,88.253,88.2,61.09224896]
[1770558592169,8.91862753,88.252,88.2,61.09224896]
[1770558592367,8.91862753,88.251,88.2,61.09224896]
[1770558592673,8.91862753,88.25,88.209,10.2109]
[1770558592874,8.91862753,88.249,88.209,10.2109]
[1770558593074,52.11217291,88.253,88.209,10.2109]
[1770558593075,8.91862753,88.248,88.209,10.2109]
[1770558593274,52.11217291,88.253,88.209,10.2109]
[1770558593476,61.03271332,88.252,88.209,10.2109]
[1770558593676,8.92054041,88.251,88.209,61.09114896]
[1770558593877,8.92054041,88.25,88.209,61.09114896]
[1770558594080,8.92054041,88.249,88.209,61.09114896]
[1770558594376,8.92054041,88.248,88.209,61.09114896]
[1770558594570,52.11217291,88.252,88.209,61.09114896]
[1770558594771,8.92056918,88.251,88.209,61.09114896]
[1770558594975,8.92056918,88.25,88.209,61.09114896]
[1770558595176,8.92056918,88.249,88.209,61.09114896]
[1770558595370,52.11217291,88.265,88.213,50.88024896]
[1770558600276,72.90654148,88.265,88.2,10.212]
[1770558600578,52.11217291,88.257,88.2,10.212]
[1770558601876,52.11217291,88.257,88.204,50.88024896]
[1770558602172,10.58976857,88.28,88.228,50.88024896]
[1770558602366,10.58976857,88.283,88.228,50.88024896]
[1770558602565,443.85588926,88.287,88.228,50.88024896]
[1770558602978,443.85588926,88.287,88.243,50.88024896]
[1770558603778,443.85588926,88.287,88.248,50.88024896]
[1770558604874,52.11217291,88.286,88.235,50.88024896]
[1770558607380,52.11217291,88.284,88.235,50.88024896]
[1770558607784,443.85588926,88.287,88.239,50.88024896]
[1770558608282,443.85588926,88.287,88.247,50.88024896]
[1770558608885,52.11217291,88.319,88.26,61.08524896]
[1770558609079,60.92658378,88.318,88.26,61.08524896]
[1770558609283,60.92658378,88.317,88.26,61.08524896]
[1770558609479,52.11217291,88.315,88.249,10.2062]
[1770558609683,52.11217291,88.313,88.25,50.88024896]
[1770558609884,8.81441087,88.312,88.25,50.88024896]
[1770558610083,8.81441087,88.311,88.25,50.88024896]
[1770558610281,52.11217291,88.311,88.25,50.88024896]
[1770558610483,52.11217291,88.309,88.25,50.88024896]
[1770558610687,52.11217291,88.309,88.256,10.2055]
[1770558615192,52.11217291,88.309,88.261,10.2048]
[1770558615392,52.11217291,88.309,88.262,50.48296028]
[1770558616495,52.11217291,88.309,88.266,60.68726028]
[1770558623303,52.11217291,88.309,88.266,10.2043]
[1770558623806,52.11217291,88.309,88.256,10.2054]
[1770558626312,52.11217291,88.309,88.256,60.68836028]
[1770558627005,52.11217291,88.309,88.256,10.2054]
[1770558627207,52.11217291,88.309,88.246,50.48296028]
[1770558628304,52.11217291,88.309,88.256,50.48296028]
[1770558629812,52.11217291,88.309,88.263,50.48296028]
[1770558631113,52.11217291,88.309,88.271,10.2037]
[1770558631513,52.11217291,88.309,88.263,50.48296028]
[1770558632818,52.11217291,88.309,88.267,10.2042]
[1770558635717,52.11217291,88.309,88.267,60.68716028]
[1770558636612,52.43457645,88.321,88.277,50.48296028]
[1770558637816,52.43457645,88.321,88.278,10.2029]
[1770558639013,52.43457645,88.321,88.268,60.68696028]
[1770558644323,52.43457645,88.319,88.268,10.204]
[1770558644621,52.43457645,88.317,88.268,10.204]
[1770558644817,51.88184596,88.315,88.268,10.204]
[1770558645120,51.88184596,88.313,88.268,10.204]
[1770558645321,51.88184596,88.311,88.268,10.204]
[1770558645620,51.88184596,88.309,88.268,10.204]
[1770558645821,51.88184596,88.309,88.258,50.24239194]
[1770558646016,51.88184596,88.307,88.258,50.24239194]
[1770558646216,51.88184596,88.305,88.258,50.24239194]
[1770558646418,51.88184596,88.303,88.258,50.24239194]
[1770558646715,51.88184596,88.301,88.259,10.2051]
[1770558646914,51.88184596,88.299,88.259,10.2051]
[1770558647316,60.71557106,88.298,88.259,10.2051]
[1770558647518,51.88184596,88.296,88.259,10.2051]
[1770558648320,8.83430485,88.295,88.259,10.2051]
[1770558648519,51.88184596,88.296,88.259,10.2051]
[1770558648719,8.83430528,88.295,88.259,10.2051]
[1770558648921,51.88184596,88.296,88.259,10.2051]
[1770558649122,8.83430615,88.295,88.259,10.2051]
[1770558649415,51.88184596,88.308,88.265,50.24239194]
[1770558650321,51.88184596,88.328,88.267,50.24239194]
[1770558650618,51.88184596,88.326,88.267,50.24239194]
[1770558650922,51.88184596,88.324,88.267,50.24239194]
[1770558651118,51.88184596,88.322,88.267,50.24239194]
[1770558651313,51.88184596,88.32,88.267,50.24239194]
[1770558651519,51.88184596,88.318,88.267,50.24239194]
[1770558651720,51.88184596,88.316,88.272,10.2036]
[1770558651916,60.71652435,88.315,88.272,10.2036]
[1770558652116,51.88184596,88.313,88.253,50.24239194]
[1770558652317,51.88184596,88.311,88.253,50.24239194]
[1770558652518,51.88184596,88.309,88.253,50.24239194]
[1770558652720,51.88184596,88.307,88.253,50.24239194]
[1770558652921,51.88184596,88.305,88.253,50.24239194]
[1770558653324,51.88184596,88.303,88.253,50.24239194]
[1770558653716,51.88184596,88.303,88.263,10.2047]
[1770558656824,51.88184596,88.301,88.205,50.24239194]
[1770558657026,51.88184596,88.299,88.205,50.24239194]
[1770558657223,51.88184596,88.297,88.205,50.24239194]
[1770558657423,51.88184596,88.295,88.205,50.24239194]
[1770558657619,51.88184596,88.293,88.205,50.24239194]
[1770558657815,51.88184596,88.305,88.256,50.24239194]
[1770558658827,51.88184596,88.305,88.273,10.2035]
[1770558660331,51.88184596,88.317,88.283,10.2023]
[1770558663830,4.596e-05,88.317,88.283,60.44469194]
[1770558666324,51.88184596,88.329,88.283,60.44469194]
[1770558666521,51.88184596,88.329,88.293,10.2012]
[1770558666725,51.88184596,88.329,88.283,50.24239194]
[1770558669831,51.88184596,88.327,88.283,50.24239194]
[1770558671036,51.88184596,88.325,88.283,50.24239194]
[1770558671337,51.88184596,88.323,88.283,50.24239194]
[1770558671534,51.88184596,88.321,88.283,50.24239194]
[1770558671728,60.66612281,88.32,88.283,50.24239194]
[1770558671925,8.78427685,88.319,88.283,50.24239194]
[1770558672129,51.88184596,88.32,88.283,50.24239194]
[1770558672328,60.66730116,88.319,88.283,50.24239194]
[1770558672529,8.7854552,88.318,88.283,50.24239194]
[1770558672725,51.88184596,88.319,88.283,50.24239194]
[1770558672929,8.78553318,88.318,88.283,50.24239194]
[1770558673130,51.88184596,88.319,88.283,50.24239194]
[1770558673330,8.78556836,88.318,88.283,50.24239194]
[1770558673632,8.78566625,88.317,88.283,50.24239194]
[1770558673828,51.88184596,88.319,88.283,50.24239194]
[1770558674030,60.52371902,88.318,88.283,50.24239194]
[1770558674235,60.52371902,88.317,88.283,50.24239194]
[1770558674434,51.73805277,88.317,88.283,50.24239194]
[1770558676738,51.73805277,88.317,88.272,60.15328784]
[1770558678935,49.37302676,88.337,88.283,49.94968784]
[1770558679135,49.37302676,88.335,88.283,49.94968784]
[1770558679334,49.37302676,88.333,88.283,49.94968784]
[1770558679537,58.15927252,88.332,88.285,49.94968784]
[1770558679737,58.15927252,88.331,88.285,49.94968784]
[1770558679936,8.78624576,88.33,88.285,49.94968784]
[1770558680137,8.78624576,88.329,88.285,49.94968784]
[1770558680337,8.78624576,88.328,88.285,49.94968784]
[1770558680639,8.78624576,88.327,88.285,49.94968784]
[1770558680938,8.78624576,88.326,88.287,49.94968784]
[1770558681135,8.78624576,88.325,88.287,49.94968784]
[1770558681335,49.37302676,88.343,88.296,49.94968784]
[1770558682138,49.37302676,88.343,88.295,10.2009]
[1770558685146,49.37302676,88.343,88.297,10.2007]
[1770558693350,49.37302676,88.341,88.297,10.2007]
[1770558693551,49.37302676,88.339,88.297,10.2007]
[1770558693748,49.37302676,88.337,88.297,10.2007]
[1770558693948,58.11615507,88.336,88.297,10.2007]
[1770558694151,49.37302676,88.334,88.297,10.2007]
[1770558694353,58.11615507,88.333,88.297,10.2007]
[1770558694552,49.37302676,88.333,88.297,10.2007]
[1770558696353,49.37302676,88.353,88.297,60.15038784]
[1770558696553,49.37302676,88.351,88.297,60.15038784]
[1770558696855,49.37302676,88.349,88.297,60.15038784]
[1770558697060,49.37302676,88.361,88.31,49.94968784]
[1770558697355,8.73652609,88.36,88.31,49.94968784]
[1770558697551,8.73652609,88.359,88.31,49.94968784]
[1770558697860,8.73652609,88.358,88.31,49.94968784]
[1770558698155,8.73652609,88.357,88.31,49.94968784]
[1770558698355,49.37302676,88.361,88.31,49.94968784]
[1770558698654,8.73106321,88.36,88.31,49.94968784]
[1770558698857,8.73106321,88.359,88.321,10.1979]
[1770558699050,8.73106321,88.358,88.322,49.94968784]
[1770558699251,49.37302676,88.361,88.322,49.94968784]
[1770558699556,8.728893,88.36,88.322,49.94968784]
[1770558699751,8.728893,88.359,88.322,49.94968784]
[1770558699951,8.728893,88.358,88.322,49.94968784]
[1770558700152,49.37302676,88.361,88.322,49.94968784]
[1770558700455,8.72933997,88.36,88.322,49.94968784]
[1770558700760,8.72933997,88.359,88.322,49.94968784]
[1770558700945,49.37302676,88.361,88.322,49.94968784]
[1770558701151,8.72713954,88.36,88.322,49.94968784]
[1770558701456,8.72713954,88.359,88.322,49.94968784]
[1770558701755,49.37302676,88.361,88.322,49.94968784]
[1770558702058,8.72572317,88.36,88.322,49.94968784]
[1770558702256,49.37302676,88.361,88.322,49.94968784]
[1770558702257,8.72572317,88.359,88.322,49.94968784]
[1770558702460,49.37302676,88.361,88.322,49.94968784]
[1770558702650,8.72693598,88.36,88.322,49.94968784]
[1770558702846,49.37302676,88.361,88.323,10.1978]
[1770558703054,49.37302676,88.361,88.323,60.14748784]
[1770558704259,49.37302676,88.372,88.323,60.14748784]
[1770558704551,49.37302676,88.37,88.323,60.14748784]
[1770558704753,63.67798104,88.369,88.323,60.14748784]
[1770558704950,437.06586156,88.379,88.271,33.98]
[1770558704951,437.06586156,88.379,88.333,50.91906539]
[1770558705555,54.95292739,88.405,88.358,50.91906539]
[1770558706258,20.91404296,88.461,88.293,20.4023]
[1770558706259,10.59477339,88.443,88.375,61.11076539]
[1770558706562,10.59477339,88.447,88.375,61.11076539]
[1770558707061,10.59477339,88.428,88.333,50.91906539]
[1770558707263,1.96918898,88.449,88.333,50.91906539]
[1770558707264,10.59477339,88.409,88.333,50.91906539]
[1770558707452,10.59477339,88.415,88.333,50.91906539]
[1770558707657,1.96918898,88.449,88.293,20.4023]
[1770558707658,10.1881,88.408,88.336,50.91906539]
[1770558708265,54.95292739,88.404,88.336,50.91906539]
[1770558708665,54.95292739,88.404,88.337,10.1961]
[1770558708864,54.95292739,88.404,88.337,50.91906539]
[1770558709262,54.95292739,88.404,88.349,10.1947]
[1770558709461,54.95292739,88.404,88.337,50.91906539]
[1770558710762,54.95292739,88.404,88.338,10.196]
[1770558711060,54.95292739,88.404,88.339,50.91906539]
[1770558711766,54.95292739,88.404,88.341,61.11466539]
[1770558717060,54.95292739,88.402,88.341,61.11466539]
[1770558717270,54.95292739,88.4,88.341,61.11466539]
[1770558717774,54.95292739,88.398,88.33,61.11596539]
[1770558717970,54.95292739,88.396,88.33,61.11596539]